bitfinex-derivatives/quotes_SOLF0:USTF0_20250829
["timestamp","ask_amount","ask_price","bid_price","bid_amount"]
[1756504336730,10.35762075,203.65,203.62,11.96458512]
[1756504336937,2.49762075,203.64,203.62,7.93]
[1756504337132,2.49762075,203.63,203.62,7.93]
[1756504337328,2.49762075,203.63,203.59,11.96458512]
[1756504337533,2.49762075,203.62,203.59,7.93]
[1756504337736,2.49762075,203.61,203.59,7.93]
[1756504338034,2.49762075,203.6,203.59,7.93]
[1756504338434,2.49762075,203.6,203.55,4.03458512]
[1756504338640,10.35505014,203.59,203.55,7.93]
[1756504338928,10.35505014,203.59,203.53,4.03458512]
[1756504338929,2.49505014,203.58,203.53,7.93]
[1756504339136,2.49505014,203.58,203.51,7.93]
[1756504339137,2.49505014,203.57,203.51,7.93]
[1756504339330,2.49505014,203.56,203.5,7.93]
[1756504339730,3.63935565,203.58,203.5,7.93]
[1756504339928,2.491889,203.57,203.5,7.93]
[1756504340129,2.491889,203.56,203.5,7.93]
[1756504340324,3.63935565,203.58,203.5,7.93]
[1756504340536,2.48905266,203.57,203.5,7.93]
[1756504340737,3.63935565,203.58,203.5,7.93]
[1756504341031,2.48905266,203.57,203.5,7.93]
[1756504341237,7.86,203.56,203.5,7.93]
[1756504341435,7.86,203.54,203.5,7.93]
[1756504341932,7.86,203.54,203.47,7.93]
[1756504342137,7.89581483,203.54,203.47,7.93]
[1756504345039,3.63935565,203.52,203.41,7.93]
[1756504345739,0.03564146,203.49,203.41,7.93]
[1756504353746,0.03564146,203.49,203.42,7.93]
[1756504353939,0.03564146,203.49,203.44,3.63935565]
[1756504354138,0.03564146,203.49,203.45,7.93]
[1756504358851,0.03564146,203.49,203.44,4.423]
[1756504359052,0.03564146,203.49,203.45,7.34]
[1756504364358,0.03564146,203.49,203.44,4.423]
[1756504364858,0.03564146,203.49,203.45,7.34]
[1756504365556,0.03564146,203.49,203.44,4.423]
[1756504365756,0.03564146,203.49,203.45,7.34]
[1756504366360,0.03564146,203.49,203.44,4.423]
[1756504366659,0.03564146,203.49,203.45,7.34]
[1756504367660,0.03564146,203.49,203.45,11.7627]
[1756504367854,0.03564146,203.49,203.46,7.34]
[1756504369163,0.03564146,203.49,203.45,4.4227]
[1756504369463,0.03564146,203.49,203.46,7.34]
[1756504369863,0.03564146,203.49,203.45,4.4227]
[1756504370064,0.03564146,203.49,203.46,7.34]
[1756504370257,7.49564146,203.49,203.46,7.34]
[1756504370460,0.03564146,203.49,203.39,7.34]
[1756504371265,0.03564146,203.49,203.39,4.4239]
[1756504371465,0.03564146,203.49,203.4,7.34]
[1756504375171,7.46,203.48,203.4,7.34]
[1756504375671,11.09935565,203.48,203.4,7.34]
[1756504377173,7.46,203.47,203.4,11.37458512]
[1756504377371,7.46,203.47,203.4,7.34]
[1756504380067,7.46,203.47,203.4,11.37458512]
[1756504380264,7.46,203.47,203.41,7.34]
[1756504380475,0.03564146,203.49,203.43,7.34]
[1756504380774,0.03564146,203.49,203.43,11.37458512]
[1756504381273,7.49564146,203.49,203.45,7.34]
[1756504381469,2.49818646,203.48,203.45,7.34]
[1756504381769,7.49564146,203.49,203.45,7.34]
[1756504381975,2.49828711,203.48,203.45,7.34]
[1756504382174,7.49564146,203.49,203.45,11.37458512]
[1756504382372,2.49838576,203.48,203.46,7.34]
[1756504382566,7.49564146,203.49,203.46,7.34]
[1756504382774,2.50052387,203.48,203.46,7.34]
[1756504382971,7.49564146,203.49,203.46,7.34]
[1756504383278,2.49954485,203.48,203.46,7.34]
[1756504383473,2.49954485,203.47,203.46,7.34]
[1756504383675,7.49564146,203.49,203.46,11.37458512]
[1756504383876,2.50122633,203.48,203.46,11.37458512]
[1756504384076,7.49564146,203.49,203.46,11.37458512]
[1756504384279,2.50122633,203.48,203.46,11.37458512]
[1756504384480,7.49564146,203.49,203.46,11.37458512]
[1756504384679,2.50173488,203.48,203.46,11.37458512]
[1756504384881,0.03564146,203.49,203.47,7.34]
[1756504385176,2.50173488,203.48,203.47,7.34]
[1756504386478,2.50173488,203.48,203.47,11.37458512]
[1756504387083,0.03564146,203.49,203.46,7.42]
[1756504387283,0.03564146,203.49,203.48,11.4741202]
[1756504387484,2.53853779,203.49,203.48,11.4741202]
[1756504387681,0.03564146,203.49,203.48,7.42]
[1756504387875,0.03564146,203.49,203.48,12.74126551]
[1756504394488,0.03564146,203.49,203.48,11.46998868]
[1756504394883,0.03564146,203.49,203.48,4.04998868]
[1756504396787,7.57,203.48,203.47,4.04998868]
[1756504398478,0.03564146,203.49,203.47,4.04998868]
[1756504399787,7.60564146,203.49,203.47,4.04998868]
[1756504402589,7.57,203.48,203.47,4.04998868]
[1756504403688,0.03564146,203.49,203.47,4.04998868]
[1756504404189,7.60564146,203.49,203.47,4.04998868]
[1756504404892,7.60564146,203.49,203.48,4.04998868]
[1756504405087,7.60564146,203.49,203.42,19.82558469]
[1756504405088,2.53718697,203.49,203.46,4.04998868]
[1756504405393,7.57,203.48,203.46,4.04998868]
[1756504411092,7.57,203.46,203.42,4.04998868]
[1756504411291,2.50164673,203.45,203.42,4.04998868]
[1756504411496,2.50164673,203.45,203.41,4.04998868]
[1756504411696,2.50164673,203.44,203.41,4.04998868]
[1756504411998,7.57,203.44,203.4,11.46998868]
[1756504412390,0.03510596,203.45,203.4,11.46998868]
[1756504412694,7.57,203.43,203.4,11.46998868]
[1756504416501,7.57,203.43,203.4,7.42]
[1756504416903,7.57,203.43,203.39,4.04998868]
[1756504417099,7.57,203.43,203.4,11.99998868]
[1756504417299,7.57,203.43,203.4,7.95]
[1756504417799,7.57,203.43,203.4,11.99998868]
[1756504418502,7.57,203.43,203.4,7.95]
[1756504419093,7.57,203.43,203.39,4.04998868]
[1756504419500,7.57,203.43,203.4,7.95]
[1756504420005,0.03510596,203.45,203.4,7.95]
[1756504420205,7.61,203.44,203.4,7.95]
[1756504420903,0.03510596,203.45,203.4,7.95]
[1756504421104,7.61,203.44,203.39,4.04998868]
[1756504421307,0.03510596,203.45,203.4,7.95]
[1756504421705,7.61,203.44,203.4,7.95]
[1756504421904,7.61,203.44,203.39,4.04998868]
[1756504422105,7.61,203.44,203.4,7.95]
[1756504423107,7.61,203.44,203.39,4.04998868]
[1756504423307,7.61,203.44,203.4,7.95]
[1756504423706,7.61,203.44,203.39,4.04998868]
[1756504423907,7.61,203.44,203.4,7.95]
[1756504424108,7.61,203.44,203.39,4.04998868]
[1756504424509,7.61,203.44,203.4,7.95]
[1756504424710,7.61,203.44,203.39,4.04998868]
[1756504425210,3.67446161,203.45,203.39,4.04998868]
[1756504425410,2.33855905,203.44,203.39,4.04998868]
[1756504425610,2.33855905,203.44,203.4,7.95]
[1756504425909,2.33855905,203.44,203.39,4.04998868]
[1756504426403,2.33855905,203.44,203.4,7.95]
[1756504426601,2.33855905,203.44,203.39,4.04998868]
[1756504426809,2.33855905,203.44,203.4,7.95]
[1756504427015,2.33855905,203.44,203.39,4.04998868]
[1756504427214,2.33855905,203.44,203.4,7.95]
[1756504427416,7.61,203.44,203.4,7.95]
[1756504427715,7.61,203.44,203.39,4.04998868]
[1756504427916,7.61,203.44,203.4,7.95]
[1756504428115,7.61,203.44,203.39,4.04998868]
[1756504428307,7.61,203.44,203.4,7.95]
[1756504428509,7.61,203.44,203.39,4.04998868]
[1756504429512,7.61,203.44,203.4,7.95]
[1756504430614,7.61,203.44,203.39,4.04998868]
[1756504431015,7.61,203.44,203.4,7.95]
[1756504431218,7.61,203.44,203.39,4.04998868]
[1756504431719,0.03510596,203.45,203.39,4.04998868]
[1756504432613,0.03510596,203.45,203.4,7.95]
[1756504432815,0.03510596,203.45,203.39,4.04998868]
[1756504433120,0.03510596,203.45,203.4,7.95]
[1756504433317,0.03510596,203.45,203.39,4.04998868]
[1756504433621,0.03510596,203.45,203.4,7.95]
[1756504434024,0.03510596,203.45,203.39,4.04998868]
[1756504434419,0.03510596,203.45,203.4,4.04998868]
[1756504434720,0.03510596,203.45,203.41,7.95]
[1756504434921,7.61,203.44,203.41,7.95]
[1756504435722,7.61,203.44,203.4,4.04998868]
[1756504435919,7.61,203.44,203.41,7.95]
[1756504436119,7.61,203.44,203.4,4.04998868]
[1756504436421,7.61,203.44,203.41,7.95]
[1756504439627,0.03510596,203.45,203.41,7.95]
[1756504439828,7.61,203.44,203.41,7.95]
[1756504440526,7.61,203.44,203.41,11.99998868]
[1756504443835,7.64510596,203.45,203.42,7.95]
[1756504444030,0.03510596,203.45,203.43,7.95]
[1756504444236,0.03510596,203.45,203.44,11.99998868]
[1756504445324,11.26403046,203.56,203.45,7.95]
[1756504445528,11.26403046,203.56,203.49,4.04219439]
[1756504445529,2.50123276,203.55,203.49,4.04219439]
[1756504445832,2.50123276,203.54,203.49,4.04219439]
[1756504446133,7.61,203.57,203.49,4.04219439]
[1756504446134,7.61,203.57,203.5,7.95]
[1756504446333,2.50031042,203.56,203.5,7.95]
[1756504446534,2.50031042,203.55,203.51,0.03381925]
[1756504446728,2.50031042,203.54,203.52,7.95]
[1756504446926,7.65,203.59,203.52,7.95]
[1756504447127,2.5004795,203.58,203.52,7.95]
[1756504447333,10.1504795,203.57,203.51,0.03381925]
[1756504447533,2.5004795,203.56,203.51,0.03381925]
[1756504447733,2.5004795,203.55,203.52,7.43]
[1756504447934,2.5004795,203.54,203.52,7.43]
[1756504448138,7.65,203.57,203.51,7.46381925]
[1756504448340,2.4989205,203.56,203.52,7.43]
[1756504448533,2.4989205,203.55,203.51,0.03381925]
[1756504448738,2.4989205,203.54,203.52,7.43]
[1756504448938,3.65403046,203.57,203.51,7.46381925]
[1756504449138,2.49901855,203.56,203.52,7.43]
[1756504449340,2.49901855,203.55,203.52,7.43]
[1756504449535,3.65403046,203.57,203.51,7.46381925]
[1756504449839,3.65403046,203.57,203.51,0.03381925]
[1756504449840,10.14835333,203.56,203.51,0.03381925]
[1756504450033,2.49835333,203.55,203.51,0.03381925]
[1756504450236,7.65,203.56,203.52,7.43]
[1756504450441,2.49769324,203.55,203.51,0.03381925]
[1756504450638,7.65,203.56,203.52,7.43]
[1756504450939,2.4976938,203.55,203.52,7.43]
[1756504451135,7.65,203.56,203.52,7.43]
[1756504451340,2.49710178,203.55,203.52,7.43]
[1756504451638,7.65,203.56,203.52,7.43]
[1756504451841,2.49708105,203.55,203.52,7.43]
[1756504452035,7.65,203.56,203.52,7.43]
[1756504452235,2.49654799,203.55,203.52,7.43]
[1756504452443,7.65,203.56,203.52,7.43]
[1756504452636,2.49650834,203.55,203.52,7.43]
[1756504452946,7.65,203.56,203.52,7.43]
[1756504453240,2.49650834,203.55,203.52,7.43]
[1756504453441,7.65,203.56,203.52,7.43]
[1756504453740,2.49597048,203.55,203.52,7.43]
[1756504453942,7.65,203.56,203.52,7.43]
[1756504457343,3.65403046,203.57,203.52,7.43]
[1756504457533,7.65,203.56,203.52,7.43]
[1756504457739,3.65403046,203.57,203.51,0.03381925]
[1756504458648,3.65403046,203.57,203.51,7.46381925]
[1756504459146,7.65,203.58,203.51,7.46381925]
[1756504459341,2.33610207,203.55,203.52,7.43]
[1756504460044,2.33610207,203.55,203.51,0.03381925]
[1756504460244,2.33610207,203.55,203.52,7.43]
[1756504461340,9.98610207,203.55,203.52,7.43]
[1756504461640,2.33610207,203.55,203.52,7.43]
[1756504461840,2.33610207,203.55,203.51,0.03381925]
[1756504462041,2.33610207,203.55,203.52,7.43]
[1756504462247,2.33610207,203.55,203.51,0.03381925]
[1756504462545,2.33610207,203.55,203.52,7.43]
[1756504462944,2.33610207,203.55,203.51,0.03381925]
[1756504463146,2.33610207,203.55,203.52,7.43]
[1756504463536,2.33610207,203.55,203.51,0.03381925]
[1756504463943,2.33610207,203.55,203.52,7.43]
[1756504464642,9.98610207,203.55,203.52,7.43]
[1756504466447,7.65,203.55,203.52,7.43]
[1756504466642,9.98610207,203.55,203.52,7.43]
[1756504469247,2.33610207,203.55,203.52,7.43]
[1756504469451,7.65,203.54,203.52,7.43]
[1756504476469,2.33610207,203.55,203.51,0.03381925]
[1756504476674,7.65,203.52,203.51,0.03381925]
[1756504477172,10.13861938,203.52,203.51,0.03381925]
[1756504481075,7.72,203.51,203.43,11.95219439]
[1756504481270,10.05610207,203.48,203.43,7.91]
[1756504481470,2.33610207,203.48,203.42,4.04219439]
[1756504481675,2.33610207,203.48,203.42,7.91]
[1756504482577,2.33610207,203.46,203.41,7.91]
[1756504482771,2.33610207,203.46,203.4,176.87018445]
[1756504482972,2.33610207,203.46,203.41,7.91]
[1756504483167,2.33610207,203.46,203.4,176.87018445]
[1756504483473,2.33610207,203.46,203.41,7.91]
[1756504483668,2.37362428,203.47,203.41,7.91]
[1756504484378,2.37362428,203.47,203.41,11.95219439]
[1756504484571,2.37362428,203.47,203.41,7.91]
[1756504484773,2.37362428,203.47,203.4,174.53408238]
[1756504484972,7.72,203.46,203.4,182.44408238]
[1756504485980,10.05610207,203.44,203.41,7.91]
[1756504486168,7.72,203.43,203.41,7.91]
[1756504486770,7.72,203.43,203.4,7.91]
[1756504487171,2.33610207,203.42,203.4,7.91]
[1756504487382,10.05610207,203.42,203.39,7.91]
[1756504488273,0.03293622,203.43,203.38,4.04219439]
[1756504488475,5.43871813,203.62,203.42,2.33610207]
[1756504488779,2.33610207,203.57,203.5,2.33610207]
[1756504488982,2.49106818,203.56,203.49,7.91]
[1756504489169,2.49106818,203.56,203.47,4.4222]
[1756504489170,10.21081524,203.55,203.5,10.24610207]
[1756504489376,7.72,203.55,203.51,7.91]
[1756504491081,7.72,203.55,203.51,7.94209755]
[1756504493076,7.72,203.55,203.51,0.03209755]
[1756504493276,7.72,203.55,203.52,7.91]
[1756504499981,21.5,203.57,203.51,0.03209755]
[1756504500183,13.86057965,203.56,203.51,0.03209755]
[1756504500387,7.72,203.54,203.51,0.03209755]
[1756504500582,7.72,203.52,203.51,0.03209755]
[1756504500784,10.21065444,203.52,203.51,0.03209755]
[1756504501284,10.71065444,203.52,203.51,0.03209755]
[1756504502288,10.71065444,203.52,203.43,7.91]
[1756504502588,7.72,203.5,203.43,7.91]
[1756504502791,7.72,203.48,203.39,7.91]
[1756504502986,52.13065444,203.47,203.39,7.91]
[1756504503183,2.49065444,203.46,203.39,7.91]
[1756504503890,0.03121086,203.45,203.39,7.91]
[1756504504289,7.75121086,203.45,203.39,7.91]
[1756504504490,2.50862903,203.44,203.39,7.91]
[1756504504693,7.72,203.42,203.39,7.91]
[1756504506495,91.72,203.44,203.38,0.03217218]
[1756504506696,124.18,203.43,203.38,0.03217218]
[1756504506992,7.26,203.43,203.38,0.03217218]
[1756504507194,124.18,203.43,203.38,0.03217218]
[1756504507592,7.26,203.42,203.38,0.03217218]
[1756504508092,124.18,203.43,203.38,0.03217218]
[1756504508293,7.26,203.42,203.38,0.03217218]
[1756504508887,124.18,203.43,203.38,0.03217218]
[1756504509293,9.76498551,203.42,203.38,0.03217218]
[1756504509593,127.82992521,203.41,203.38,0.03217218]
[1756504509792,7.26,203.39,203.38,0.03217218]
[1756504509994,127.32,203.39,203.38,0.03217218]
[1756504510900,131.44,203.39,203.38,0.03217218]
[1756504511388,133.94295336,203.39,203.38,0.03217218]
[1756504511589,134.44295336,203.39,203.3,7.6]
[1756504511796,7.26,203.37,203.3,7.6]
[1756504512191,7.26,203.37,203.26,11.64219439]
[1756504512494,10.90992521,203.35,203.26,7.6]
[1756504512996,0.03738352,203.34,203.26,7.6]
[1756504514292,7.26,203.33,203.26,7.6]
[1756504515396,57.94992521,203.32,203.26,7.6]
[1756504515796,7.26,203.31,203.26,7.6]
[1756504516191,0.03738352,203.34,203.26,7.6]
[1756504516500,3.64992521,203.32,203.26,7.6]
[1756504516696,7.26,203.31,203.26,7.6]
[1756504517298,7.26,203.31,203.2,7.6]
[1756504517797,124.18,203.3,203.2,7.6]
[1756504517998,0.03604977,203.28,203.2,7.6]
[1756504518694,7.33604977,203.28,203.2,7.6]
[1756504519197,7.26,203.27,203.2,7.6]
[1756504519896,7.26,203.27,203.15,4.04219439]
[1756504519897,10.90992521,203.27,203.15,4.04219439]
[1756504520097,3.64992521,203.24,203.16,7.6]
[1756504520296,7.26,203.23,203.16,7.6]
[1756504520695,124.21190224,203.22,203.16,7.6]
[1756504520895,0.03190224,203.22,203.16,7.6]
[1756504521099,79.39190224,203.22,203.16,7.6]
[1756504522003,0.03190224,203.22,203.16,7.6]
[1756504524602,124.23190224,203.22,203.16,7.6]
[1756504525197,0.03190224,203.22,203.16,7.6]
[1756504525404,7.26,203.2,203.16,7.6]
[1756504526207,123.73190224,203.22,203.11,7.6]
[1756504526502,0.03190224,203.22,203.11,7.6]
[1756504526703,3.64992521,203.23,203.13,7.6]
[1756504526909,0.03257444,203.19,203.13,7.6]
[1756504531308,0.03257444,203.19,203.13,15.67972521]
[1756504531515,0.03257444,203.19,203.14,7.6]
[1756504532214,0.03257444,203.19,203.14,0.5]
[1756504532415,7.26,203.27,203.17,7.6]
[1756504532914,3.64992521,203.28,203.19,7.6]
[1756504533715,0.03127661,203.26,203.19,7.6]
[1756504534114,0.03127661,203.26,203.17,7.6]
[1756504535720,0.03127661,203.26,203.18,4.4287]
[1756504536019,0.03127661,203.26,203.19,7.6]
[1756504547027,0.03127661,203.26,203.2,7.55]
[1756504551135,7.48,203.25,203.19,2.0]
[1756504556034,131.52,203.25,203.19,2.0]
[1756504556231,2.49870275,203.24,203.19,2.0]
[1756504556533,124.04,203.25,203.19,2.0]
[1756504556732,7.48,203.24,203.19,2.0]
[1756504557237,131.52,203.25,203.19,2.0]
[1756504558138,2.49965536,203.24,203.19,2.0]
[1756504558329,7.48,203.23,203.19,9.55]
[1756504558936,7.48,203.24,203.19,9.55]
[1756504559135,7.48,203.25,203.19,9.55]
[1756504559333,9.98116519,203.24,203.2,7.55]
[1756504559533,7.48,203.24,203.19,2.0]
[1756504559728,7.48,203.24,203.2,7.55]
[1756504559935,7.48,203.24,203.19,2.0]
[1756504560141,7.48,203.24,203.2,7.55]
[1756504560435,7.48,203.24,203.19,2.0]
[1756504560635,0.03127661,203.26,203.19,2.0]
[1756504560636,0.03127661,203.26,203.2,7.55]
[1756504561341,2.50168492,203.25,203.2,7.55]
[1756504561540,0.03127661,203.26,203.2,7.55]
[1756504561744,2.50175268,203.25,203.19,6.04219439]
[1756504561935,0.03127661,203.26,203.2,11.59219439]
[1756504563538,0.03127661,203.26,203.21,11.59219439]
[1756504563744,0.03127661,203.26,203.22,7.55]
[1756504565037,0.03127661,203.26,203.21,4.04219439]
[1756504565337,0.03127661,203.26,203.22,7.55]
[1756504565536,7.51127661,203.26,203.22,7.55]
[1756504565740,7.51127661,203.26,203.21,4.04219439]
[1756504566444,7.51127661,203.26,203.23,7.55]
[1756504569148,7.51127661,203.26,203.23,7.3]
[1756504573747,0.03127661,203.26,203.23,4.04219439]
[1756504573947,0.03127661,203.26,203.24,7.3]
[1756504574252,0.03127661,203.26,203.23,4.04219439]
[1756504575051,0.03127661,203.26,203.24,7.3]
[1756504575250,0.03127661,203.26,203.23,4.04219439]
[1756504575251,0.03127661,203.26,203.25,11.34219439]
[1756504577752,0.03127661,203.26,203.25,7.3]
[1756504582359,0.03127661,203.26,203.25,11.36709094]
[1756504586362,0.03127661,203.26,203.25,7.3]
[1756504586963,0.03127661,203.26,203.25,11.36763791]
[1756504590162,0.03127661,203.26,203.25,7.3]
[1756504590360,0.03127661,203.26,203.25,11.36206901]
[1756504607378,0.03127661,203.26,203.25,7.3]
[1756504615583,2.34176493,203.35,203.26,7.68]
[1756504615788,2.50928019,203.34,203.32,4.06696663]
[1756504615987,7.3,203.36,203.34,7.68]
[1756504616187,2.50912664,203.35,203.34,7.68]
[1756504621289,2.50466642,203.35,203.34,7.68]
[1756504621788,7.3,203.36,203.34,7.68]
[1756504624883,9.64176493,203.37,203.31,11.74696663]
[1756504626088,9.64176493,203.37,203.31,7.68]
[1756504626289,7.3,203.37,203.31,7.68]
[1756504626486,2.34176493,203.36,203.31,7.68]
[1756504626794,2.34176493,203.36,203.31,7.46]
[1756504627787,113.03,203.41,203.31,7.46]
[1756504628088,2.34176493,203.39,203.34,7.46]
[1756504628389,2.47936539,203.4,203.34,7.46]
[1756504628390,2.34176493,203.4,203.34,7.46]
[1756504628595,9.63176493,203.4,203.34,7.46]
[1756504628791,9.63176493,203.4,203.36,7.46]
[1756504629299,7.29,203.4,203.36,7.46]
[1756504629596,7.29,203.4,203.35,2.34176493]
[1756504629798,7.29,203.4,203.36,7.46]
[1756504629995,2.34176493,203.41,203.35,2.34176493]
[1756504630193,2.47760046,203.4,203.36,7.46]
[1756504630398,2.34176493,203.41,203.36,7.46]
[1756504630594,2.47696363,203.4,203.35,2.34176493]
[1756504630897,2.34176493,203.46,203.4,7.46]
[1756504631101,9.76656694,203.45,203.4,7.46]
[1756504631291,7.29,203.45,203.39,2.34176493]
[1756504631492,7.29,203.45,203.4,7.46]
[1756504631693,7.29,203.52,203.43,2.34176493]
[1756504631889,4.81648117,203.51,203.44,7.46]
[1756504632100,2.34176493,203.51,203.46,7.46]
[1756504632504,2.34176493,203.53,203.47,2.34176493]
[1756504632802,9.63176493,203.55,203.48,7.46]
[1756504633002,9.63176493,203.55,203.48,7.49176135]
[1756504633197,9.63176493,203.55,203.49,2.34176493]
[1756504633409,9.63176493,203.55,203.5,7.46]
[1756504633609,9.63176493,203.55,203.49,2.34176493]
[1756504634111,7.29,203.55,203.5,7.46]
[1756504634305,7.29,203.55,203.49,2.34176493]
[1756504634504,7.29,203.55,203.5,7.46]
[1756504634909,7.29,203.55,203.49,2.34176493]
[1756504635116,7.29,203.55,203.5,7.46]
[1756504635302,7.29,203.55,203.49,7.46]
[1756504635502,7.29,203.58,203.49,7.46]
[1756504637202,3.64980646,203.57,203.49,7.46]
[1756504637407,39.4,203.61,203.48,2.03176135]
[1756504637408,7.29,203.53,203.48,2.03176135]
[1756504637709,7.29,203.5,203.48,2.03176135]
[1756504638012,7.29,203.5,203.48,2.0]
[1756504639706,3.64980646,203.51,203.48,2.0]
[1756504640607,7.29,203.5,203.48,2.0]
[1756504640810,3.64980646,203.51,203.48,2.0]
[1756504641212,7.29,203.5,203.48,2.0]
[1756504641408,3.64980646,203.51,203.48,2.0]
[1756504641609,7.29,203.5,203.48,2.0]
[1756504641815,3.64980646,203.51,203.48,2.0]
[1756504642314,7.29,203.5,203.48,2.0]
[1756504642517,3.64980646,203.51,203.48,2.0]
[1756504642912,7.29,203.5,203.48,2.0]
[1756504643114,3.64980646,203.51,203.48,2.0]
[1756504643809,7.29,203.5,203.48,2.0]
[1756504644010,3.64980646,203.51,203.48,2.0]
[1756504644812,3.64980646,203.49,203.48,2.0]
[1756504645016,10.93980646,203.49,203.48,2.0]
[1756504646719,7.29,203.49,203.48,2.0]
[1756504657325,9.62788039,203.49,203.48,2.0]
[1756504659929,12.09221726,203.49,203.46,0.03237826]
[1756504660231,10.29788039,203.47,203.46,0.03237826]
[1756504660627,12.76381784,203.47,203.46,0.03237826]
[1756504663230,12.76544849,203.47,203.46,0.03237826]
[1756504667533,12.76544849,203.47,203.39,7.82]
[1756504667729,2.33788039,203.43,203.37,7.82]
[1756504668334,2.33788039,203.41,203.35,7.82]
[1756504668935,0.0343081,203.4,203.35,7.82]
[1756504678043,2.33788039,203.39,203.33,7.82]
[1756504678434,7.96,203.36,203.33,7.82]
[1756504678634,10.29788039,203.35,203.29,7.82]
[1756504678838,10.29788039,203.33,203.29,7.82]
[1756504679448,7.96,203.32,203.29,7.82]
[1756504680548,2.3739365,203.33,203.26,7.82]
[1756504681349,0.03605611,203.33,203.26,7.82]
[1756504682149,0.03605611,203.33,203.28,3.65849801]
[1756504682349,0.03605611,203.33,203.3,7.82]
[1756504683946,0.03605611,203.33,203.31,7.82]
[1756504684452,11.61849801,203.43,203.32,7.82]
[1756504684647,2.48629127,203.42,203.32,7.82]
[1756504684846,2.48629127,203.41,203.32,7.82]
[1756504685149,11.61849801,203.43,203.32,7.82]
[1756504685346,2.48628313,203.42,203.32,7.82]
[1756504685550,2.48628313,203.41,203.32,7.82]
[1756504685749,11.61849801,203.43,203.35,0.03115949]
[1756504685940,2.48610246,203.42,203.36,7.82]
[1756504686145,7.96,203.43,203.36,7.82]
[1756504686342,2.48612098,203.42,203.36,7.82]
[1756504686551,7.96,203.43,203.36,7.82]
[1756504686751,2.4862405,203.42,203.36,7.82]
[1756504686953,7.96,203.43,203.36,7.82]
[1756504687253,2.48624031,203.42,203.36,7.82]
[1756504687454,7.96,203.43,203.36,7.82]
[1756504687652,2.48640394,203.42,203.36,7.82]
[1756504687953,7.96,203.43,203.36,7.82]
[1756504688155,118.00431764,203.44,203.36,7.82]
[1756504691754,125.71431764,203.44,203.36,7.82]
[1756504692455,125.71431764,203.44,203.36,11.85473723]
[1756504692657,125.71431764,203.44,203.36,7.82]
[1756504692855,125.71431764,203.44,203.36,11.85473723]
[1756504693254,125.71431764,203.44,203.36,7.82]
[1756504693456,125.71431764,203.44,203.36,11.85473723]
[1756504695751,125.71431764,203.44,203.37,7.43]
[1756504697961,7.71,203.44,203.37,7.43]
[1756504698156,7.71,203.44,203.37,11.46473723]
[1756504699161,7.71,203.44,203.38,7.43]
[1756504700056,7.71,203.49,203.39,4.03473723]
[1756504700260,2.48830008,203.48,203.4,7.43]
[1756504700457,7.71,203.49,203.41,7.43]
[1756504700662,2.48803099,203.48,203.41,7.43]
[1756504700852,7.71,203.49,203.42,0.03322333]
[1756504701059,2.48803954,203.48,203.42,0.03322333]
[1756504701259,7.71,203.46,203.42,0.03322333]
[1756504701458,2.48833986,203.45,203.42,0.03322333]
[1756504701662,7.71,203.46,203.42,0.03322333]
[1756504701858,7.71,203.44,203.42,0.03322333]
[1756504702058,3.65849801,203.47,203.42,0.03322333]
[1756504702263,2.48843498,203.46,203.42,0.03322333]
[1756504702463,2.48843498,203.45,203.42,0.03322333]
[1756504702664,7.71,203.46,203.42,0.03322333]
[1756504702858,2.48851022,203.45,203.42,0.03322333]